Workbook

Sheet 여수시
A1: 여수시 자동차 등록 현황
I2: (단위 : 대)
A3: 구분 | C3: 합 계 | D3: 자 동 차 | I3: 이 륜 자동차
D4: 소 계 | E4: 승용차 | F4: 승합차 | G4: 화물차 | H4: 특수차
A5: 2025년1월말 | B5: 여수 | C5: =SUM(D5+I5) -> 156,752 | D5: =SUM(E5:H5) -> 146,961 | E5: 116,295 | F5: 3,958 | G5: 25,428 | H5: 1,280 | I5: 9,791
B6: 전남 | C6: =D6+I6 -> 1,391,753 | D6: =SUM(E6:H6) -> 1,280,933 | E6: 978,060 | F6: 35,204 | G6: 258,148 | H6: 9,521 | I6: 110,820
B7: 전국 | C7: 28,567,042 | D7: 26,325,761 | E7: 21,799,448 | F7: 664,509 | G7: 3,717,583 | H7: 144,221 | I7: 2,241,281
A26: 2024년8월말 | B26: 여수 | C26: =D26+I26 -> 156,712 | D26: =SUM(E26:H26) -> 146,890 | E26: 116,055 | F26: 4,043 | G26: 25,510 | H26: 1,282 | I26: 9,822
B27: 전남 | C27: 1,377,112 | D27: =SUM(E27:H27) -> 1,265,805 | E27: 962,807 | F27: 35,835 | G27: 257,786 | H27: 9,377 | I27: 111,307
B28: 전국 | C28: 28,411,010 | D28: 26,172,064 | E28: 21,633,331 | F28: 674,007 | G28: 3,722,525 | H28: 142,201 | I28: 2,238,946
A29: 2024년9월말 | B29: 여수 | C29: 156,790 | D29: =SUM(E29:H29) -> 146,952 | E29: 116,135 | F29: 4,020 | G29: 25,522 | H29: 1,275 | I29: 9,838
B30: 전남 | C30: 1,380,989 | D30: =SUM(E30:H30) -> 1,269,660 | E30: 966,707 | F30: 35,747 | G30: 257,821 | H30: 9,385 | I30: 111,329
B31: 전국 | C31: 28,446,456 | D31: 26,202,541 | E31: 21,666,842 | F31: 671,974 | G31: 3,721,103 | H31: 142,622 | I31: 2,243,915
A32: 2024년10월말 | B32: 여수 | C32: 156,720 | D32: =SUM(E32:H32) -> 146,903 | E32: 116,169 | F32: 4,003 | G32: 25,458 | H32: 1,273 | I32: 9,817
B33: 전남 | C33: 1,384,099 | D33: =SUM(E33:H33) -> 1,272,882 | E33: 970,165 | F33: 35,551 | G33: 257,742 | H33: 9,424 | I33: 111,217
B34: 전국 | C34: 28,478,177 | D34: 26,232,569 | E34: 21,700,133 | F34: 669,712 | G34: 3,719,698 | H34: 143,026 | I34: 2,245,608
A35: 2024년11월말 | B35: 여수 | C35: 156,699 | D35: =SUM(E35:H35) -> 146,890 | E35: 116,222 | F35: 3,982 | G35: 25,416 | H35: 1,270 | I35: 9,809
B36: 전남 | C36: 1,386,443 | D36: =SUM(E36:H36) -> 1,275,312 | E36: 972,725 | F36: 35,454 | G36: 257,696 | H36: 9,437 | I36: 111,131
B37: 전국 | C37: 28,518,511 | D37: 26,273,606 | E37: 21,744,354 | F37: 667,977 | G37: 3,717,807 | H37: 143,468 | I37: 2,244,905
A38: 2024년12월말 | B38: 여수 | C38: =D38+I38 -> 187,424 | D38: =SUM(E38:H38) -> 177,617 | E38: 146,961 | F38: 3,958 | G38: 25,428 | H38: 1,270 | I38: 9,807
B39: 전남 | C39: 1,388,838 | D39: =SUM(E39:H39) -> 1,277,926 | E39: 975,280 | F39: 35,342 | G39: 257,820 | H39: 9,484 | I39: 110,912
B40: 전국 | C40: 28,540,156 | D40: 26,297,919 | E40: 21,771,120 | F40: 666,166 | G40: 3,716,743 | H40: 143,890 | I40: 2,242,237
